[Event "Early-Titled-Tuesday-Blitz-October-03-2023"]
[Site "Chess.com"]
[Date "2023.10.03"]
[Round "5"]
[White "mortngabriel"]
[Black "Alexei_Gubajdullin"]
[Result "0-1"]
[WhiteElo "2582"]
[BlackElo "2744"]
[TimeControl "180+1"]
[EndTime "8:56:07 PDT"]
[Termination "Alexei_Gubajdullin won by resignation"]

1. d4 {[%clk 0:03:00.9]} 1... Nf6 {[%clk 0:02:59.7]} 2. Nf3 {[%clk 0:03:01.1]}
2... g6 {[%clk 0:02:59.9]} 3. c4 {[%clk 0:03:01.1]} 3... Bg7 {[%clk 0:03:00.2]}
4. e3 {[%clk 0:03:01.6]} 4... O-O {[%clk 0:03:00.3]} 5. Be2 {[%clk 0:03:00.9]}
5... d6 {[%clk 0:03:00.5]} 6. Nc3 {[%clk 0:03:00.8]} 6... Nc6 {[%clk 0:03:00.8]}
7. d5 {[%clk 0:03:00.6]} 7... Ne5 {[%clk 0:02:58.7]} 8. Nxe5 {[%clk 0:03:00.8]}
8... dxe5 {[%clk 0:02:59.1]} 9. e4 {[%clk 0:03:01.7]} 9... c5 {[%clk 0:02:47.3]}
10. dxc6 {[%clk 0:02:49.2]} 10... bxc6 {[%clk 0:02:47]} 11. Qxd8 {[%clk
0:02:48.9]} 11... Rxd8 {[%clk 0:02:46.4]} 12. f3 {[%clk 0:02:47.6]} 12... Ne8
{[%clk 0:02:45.9]} 13. Be3 {[%clk 0:02:43.4]} 13... Nc7 {[%clk 0:02:44.6]} 14.
Na4 {[%clk 0:02:25.2]} 14... Ne6 {[%clk 0:02:43.7]} 15. Nc5 {[%clk 0:02:10.8]}
15... Nd4 {[%clk 0:02:43.6]} 16. Bd3 {[%clk 0:02:02.1]} 16... Bf8 {[%clk
0:02:18.8]} 17. O-O-O {[%clk 0:01:50.9]} 17... e6 {[%clk 0:02:13.5]} 18. Nb3
{[%clk 0:01:50.7]} 18... a5 {[%clk 0:02:00.9]} 19. Nxd4 {[%clk 0:01:44]} 19...
exd4 {[%clk 0:02:00.5]} 20. Bg5 {[%clk 0:01:39.6]} 20... Rd7 {[%clk 0:01:59.3]}
21. e5 {[%clk 0:01:39.5]} 21... c5 {[%clk 0:01:52.7]} 22. g4 {[%clk 0:01:28.4]}
22... Bb7 {[%clk 0:01:52]} 23. Rdf1 {[%clk 0:01:25.7]} 23... Bg7 {[%clk
0:01:43.3]} 24. Bf4 {[%clk 0:01:23.9]} 24... f6 {[%clk 0:01:26.6]} 25. exf6
{[%clk 0:01:21.4]} 25... Bxf6 {[%clk 0:01:26.4]} 26. h4 {[%clk 0:01:14.6]} 26...
e5 {[%clk 0:01:21.7]} 27. Bg3 {[%clk 0:01:11.3]} 27... Re8 {[%clk 0:01:21.1]}
28. Be4 {[%clk 0:01:04.6]} 28... a4 {[%clk 0:01:02.3]} 29. Bxb7 {[%clk
0:00:59.4]} 29... Rxb7 {[%clk 0:01:01.6]} 30. Be1 {[%clk 0:00:48.9]} 30... Bg7
{[%clk 0:00:51.6]} 31. Bd2 {[%clk 0:00:47.6]} 31... e4 {[%clk 0:00:45.8]} 32.
fxe4 {[%clk 0:00:47.2]} 32... Rxe4 {[%clk 0:00:46]} 33. Rf4 {[%clk 0:00:35.6]}
33... Re2 {[%clk 0:00:40.7]} 34. Re1 {[%clk 0:00:28.9]} 34... d3 {[%clk
0:00:33.1]} 35. Rxe2 {[%clk 0:00:18.9]} 35... dxe2 {[%clk 0:00:33.2]} 36. Re4
{[%clk 0:00:19.2]} 36... Rxb2 {[%clk 0:00:28.7]} 37. Rxe2 {[%clk 0:00:17]} 37...
Rxa2 {[%clk 0:00:28.1]} 38. Re8+ {[%clk 0:00:15.4]} 38... Kf7 {[%clk 0:00:27.7]}
39. Ra8 {[%clk 0:00:15.8]} 39... Bd4 {[%clk 0:00:27.2]} 40. g5 {[%clk
0:00:13.1]} 40... a3 {[%clk 0:00:25]} 41. Ra6 {[%clk 0:00:10]} 41... Ke7 {[%clk
0:00:21.6]} 42. Ra7+ {[%clk 0:00:06.4]} 42... Ke6 {[%clk 0:00:21.1]} 43. Rxh7
{[%clk 0:00:07.3]} 43... Rxd2 {[%clk 0:00:18.4]} 44. Kxd2 {[%clk 0:00:08.2]}
44... a2 {[%clk 0:00:18.8]} 45. Ra7 {[%clk 0:00:08.2]} 45... a1=Q {[%clk
0:00:18.2]} 46. Rxa1 {[%clk 0:00:09]} 46... Bxa1 {[%clk 0:00:18.3]} 0-1

[Event "Early-Titled-Tuesday-Blitz-October-03-2023"]
[Site "Chess.com"]
[Date "2023.10.03"]
[Round "5"]
[White "GradualismUnleashed"]
[Black "vladislavkovalev"]
[Result "0-1"]
[WhiteElo "2621"]
[BlackElo "2861"]
[TimeControl "180+1"]
[EndTime "8:56:08 PDT"]
[Termination "vladislavkovalev won by resignation"]

1. e4 {[%clk 0:03:00]} 1... e5 {[%clk 0:02:57.5]} 2. Nf3 {[%clk 0:03:00.3]} 2...
Nc6 {[%clk 0:02:57.9]} 3. Bb5 {[%clk 0:03:00.9]} 3... a6 {[%clk 0:02:58.4]} 4.
Ba4 {[%clk 0:03:01.6]} 4... Nf6 {[%clk 0:02:58.6]} 5. d4 {[%clk 0:03:02.2]} 5...
exd4 {[%clk 0:02:56.7]} 6. O-O {[%clk 0:03:02.4]} 6... Be7 {[%clk 0:02:49.8]} 7.
Re1 {[%clk 0:03:02.8]} 7... O-O {[%clk 0:02:24.5]} 8. e5 {[%clk 0:03:03.1]} 8...
Nd5 {[%clk 0:02:22.8]} 9. Nxd4 {[%clk 0:03:03.1]} 9... Nb6 {[%clk 0:02:09.8]}
10. Bb3 {[%clk 0:03:03]} 10... Nxd4 {[%clk 0:02:08.7]} 11. Qxd4 {[%clk
0:03:03.9]} 11... d5 {[%clk 0:02:09]} 12. exd6 {[%clk 0:03:04.2]} 12... Qxd6
{[%clk 0:01:56.2]} 13. Qe4 {[%clk 0:02:56.3]} 13... Bf6 {[%clk 0:01:47.2]} 14.
Nc3 {[%clk 0:02:50.7]} 14... Bd7 {[%clk 0:01:23.2]} 15. Bf4 {[%clk 0:02:42.7]}
15... Qc5 {[%clk 0:01:20.4]} 16. Nd5 {[%clk 0:02:14.8]} 16... Nxd5 {[%clk
0:01:16.7]} 17. Qxd5 {[%clk 0:02:09.6]} 17... Qxd5 {[%clk 0:01:11.9]} 18. Bxd5
{[%clk 0:02:09.6]} 18... c6 {[%clk 0:01:12.2]} 19. Bf3 {[%clk 0:02:05.8]} 19...
Rfe8 {[%clk 0:01:01.8]} 20. c3 {[%clk 0:02:03.5]} 20... Be6 {[%clk 0:01:01.1]}
21. a4 {[%clk 0:01:58.5]} 21... g5 {[%clk 0:00:56.6]} 22. Bc7 {[%clk 0:01:50]}
22... g4 {[%clk 0:00:52.8]} 23. Be4 {[%clk 0:01:49.7]} 23... h5 {[%clk
0:00:48.5]} 24. a5 {[%clk 0:01:48.2]} 24... Kg7 {[%clk 0:00:48.3]} 25. f3 {[%clk
0:01:44.8]} 25... Re7 {[%clk 0:00:42.6]} 26. Bd6 {[%clk 0:01:42.1]} 26... Rd7
{[%clk 0:00:42.8]} 27. Bf4 {[%clk 0:01:21.9]} 27... Rad8 {[%clk 0:00:42.4]} 28.
fxg4 {[%clk 0:01:10.2]} 28... hxg4 {[%clk 0:00:43.3]} 29. Kf2 {[%clk 0:01:08.3]}
29... Bh4+ {[%clk 0:00:41.4]} 30. g3 {[%clk 0:01:06.7]} 30... Be7 {[%clk
0:00:40.8]} 31. Be3 {[%clk 0:01:04]} 31... Rh8 {[%clk 0:00:38.6]} 32. Bd4+
{[%clk 0:01:02]} 32... Bf6 {[%clk 0:00:31.5]} 33. Bxf6+ {[%clk 0:00:58.6]} 33...
Kxf6 {[%clk 0:00:32.4]} 34. Rf1 {[%clk 0:00:58]} 34... Kg7 {[%clk 0:00:24.3]}
35. Kg1 {[%clk 0:00:52.8]} 35... Rd2 {[%clk 0:00:24.1]} 36. b4 {[%clk
0:00:42.9]} 36... Rhxh2 {[%clk 0:00:23]} 37. Rad1 {[%clk 0:00:40.1]} 37... Rde2
{[%clk 0:00:15.8]} 38. Rde1 {[%clk 0:00:39.1]} 38... Rxe1 {[%clk 0:00:12.7]} 39.
Rxe1 {[%clk 0:00:40]} 39... Rd2 {[%clk 0:00:12.4]} 40. Rf1 {[%clk 0:00:32.3]}
40... Re2 {[%clk 0:00:10.1]} 41. Rf4 {[%clk 0:00:25.7]} 41... Re3 {[%clk
0:00:09]} 42. Kf2 {[%clk 0:00:20.2]} 42... Rxc3 {[%clk 0:00:09.5]} 43. Bf5
{[%clk 0:00:20]} 43... Bxf5 {[%clk 0:00:08.8]} 44. Rxf5 {[%clk 0:00:20.9]} 44...
Rc4 {[%clk 0:00:08.2]} 45. Rg5+ {[%clk 0:00:19.1]} 45... Kf6 {[%clk 0:00:08.4]}
0-1

[Event "Early-Titled-Tuesday-Blitz-October-03-2023"]
[Site "Chess.com"]
[Date "2023.10.03"]
[Round "5"]
[White "MajorCoast"]
[Black "Elbebiber"]
[Result "1-0"]
[WhiteElo "2259"]
[BlackElo "2135"]
[TimeControl "180+1"]
[EndTime "8:56:09 PDT"]
[Termination "MajorCoast won by checkmate"]

1. c4 {[%clk 0:03:00.9]} 1... Nf6 {[%clk 0:02:56.1]} 2. Nf3 {[%clk 0:02:59.6]}
2... e6 {[%clk 0:02:56.1]} 3. g3 {[%clk 0:02:58.8]} 3... d5 {[%clk 0:02:56.2]}
4. d4 {[%clk 0:02:57.2]} 4... Be7 {[%clk 0:02:51.1]} 5. Bg2 {[%clk 0:02:57.1]}
5... O-O {[%clk 0:02:51]} 6. O-O {[%clk 0:02:57.7]} 6... c6 {[%clk 0:02:48]} 7.
Qc2 {[%clk 0:02:57.2]} 7... b6 {[%clk 0:02:47.2]} 8. Nbd2 {[%clk 0:02:57.5]}
8... Bb7 {[%clk 0:02:47.2]} 9. e4 {[%clk 0:02:56.4]} 9... dxe4 {[%clk
0:02:44.7]} 10. Nxe4 {[%clk 0:02:57.3]} 10... Nxe4 {[%clk 0:02:38.6]} 11. Qxe4
{[%clk 0:02:58.2]} 11... Nd7 {[%clk 0:02:36]} 12. Bf4 {[%clk 0:02:58.6]} 12...
Nf6 {[%clk 0:02:34.9]} 13. Qe2 {[%clk 0:02:57.8]} 13... Rc8 {[%clk 0:02:30.9]}
14. Rfd1 {[%clk 0:02:55.5]} 14... Bd6 {[%clk 0:02:23.3]} 15. Be5 {[%clk
0:02:49.2]} 15... Qe7 {[%clk 0:02:10]} 16. Rac1 {[%clk 0:02:39.7]} 16... Rfd8
{[%clk 0:02:08.8]} 17. c5 {[%clk 0:02:33]} 17... Bxe5 {[%clk 0:02:01.6]} 18.
Nxe5 {[%clk 0:02:22.9]} 18... Nd5 {[%clk 0:01:57.6]} 19. Bxd5 {[%clk 0:01:53.2]}
19... Rxd5 {[%clk 0:01:42.7]} 20. b4 {[%clk 0:01:47.1]} 20... b5 {[%clk
0:01:32.2]} 21. Rd3 {[%clk 0:01:41.7]} 21... Rcd8 {[%clk 0:01:27.7]} 22. Rcd1
{[%clk 0:01:41.3]} 22... Qc7 {[%clk 0:01:19.4]} 23. f4 {[%clk 0:01:40.6]} 23...
a5 {[%clk 0:01:18.2]} 24. a3 {[%clk 0:01:36]} 24... axb4 {[%clk 0:01:11.4]} 25.
axb4 {[%clk 0:01:34]} 25... Ra8 {[%clk 0:01:11.5]} 26. Re1 {[%clk 0:00:59.9]}
26... Qd8 {[%clk 0:01:08.5]} 27. Nxf7 {[%clk 0:00:44.9]} 27... Kxf7 {[%clk
0:00:55.8]} 28. Qxe6+ {[%clk 0:00:45.1]} 28... Kf8 {[%clk 0:00:56.4]} 29. Rde3
{[%clk 0:00:38.6]} 29... Qd7 {[%clk 0:00:49.4]} 30. Qe4 {[%clk 0:00:29.9]} 30...
g6 {[%clk 0:00:44.2]} 31. Qf3 {[%clk 0:00:16.6]} 31... Rd8 {[%clk 0:00:17.9]}
32. Re7 {[%clk 0:00:16]} 32... Qxe7 {[%clk 0:00:18.1]} 33. Rxe7 {[%clk
0:00:16.7]} 33... Kxe7 {[%clk 0:00:18.7]} 34. Qe4+ {[%clk 0:00:14.8]} 34... Kf7
{[%clk 0:00:18.2]} 35. f5 {[%clk 0:00:11.1]} 35... gxf5 {[%clk 0:00:17.5]} 36.
Qh4 {[%clk 0:00:11.1]} 36... Kg8 {[%clk 0:00:15.9]} 37. Qg5+ {[%clk 0:00:10.4]}
37... Kf8 {[%clk 0:00:13.7]} 38. Qf6+ {[%clk 0:00:09.9]} 38... Kg8 {[%clk
0:00:13.7]} 39. Qe6+ {[%clk 0:00:09.4]} 39... Kf8 {[%clk 0:00:13.3]} 40. Qf6+
{[%clk 0:00:09]} 40... Kg8 {[%clk 0:00:13]} 41. h4 {[%clk 0:00:09.7]} 41... Bc8
{[%clk 0:00:11.4]} 42. h5 {[%clk 0:00:09.2]} 42... R5d7 {[%clk 0:00:11.2]} 43.
h6 {[%clk 0:00:08.9]} 43... Rf7 {[%clk 0:00:11.4]} 44. Qg5+ {[%clk 0:00:08.4]}
44... Kf8 {[%clk 0:00:11.3]} 45. Qxd8# {[%clk 0:00:08.4]} 1-0

[Event "Early-Titled-Tuesday-Blitz-October-03-2023"]
[Site "Chess.com"]
[Date "2023.10.03"]
[Round "5"]
[White "Vladimir_Zakhartsov"]
[Black "DenLaz"]
[Result "0-1"]
[WhiteElo "2825"]
[BlackElo "3067"]
[TimeControl "180+1"]
[EndTime "8:56:10 PDT"]
[Termination "DenLaz won on time"]

1. d4 {[%clk 0:02:57.1]} 1... Nf6 {[%clk 0:02:58.6]} 2. c4 {[%clk 0:02:57.3]}
2... e6 {[%clk 0:02:59]} 3. Nf3 {[%clk 0:02:57]} 3... d5 {[%clk 0:02:59.1]} 4.
g3 {[%clk 0:02:57]} 4... Bb4+ {[%clk 0:02:57.1]} 5. Bd2 {[%clk 0:02:56.8]} 5...
a5 {[%clk 0:02:57.4]} 6. a3 {[%clk 0:02:55.4]} 6... Be7 {[%clk 0:02:56.6]} 7.
Bg2 {[%clk 0:02:52.6]} 7... O-O {[%clk 0:02:56.4]} 8. Bc3 {[%clk 0:02:49.7]}
8... Nbd7 {[%clk 0:02:34]} 9. Nbd2 {[%clk 0:02:46.3]} 9... c6 {[%clk 0:02:34.2]}
10. b3 {[%clk 0:02:28]} 10... b5 {[%clk 0:02:27.9]} 11. c5 {[%clk 0:02:26.1]}
11... Ne4 {[%clk 0:02:25.6]} 12. Nxe4 {[%clk 0:02:13.5]} 12... dxe4 {[%clk
0:02:25]} 13. Ne5 {[%clk 0:02:05.7]} 13... Nxe5 {[%clk 0:02:22.4]} 14. dxe5
{[%clk 0:02:06.5]} 14... Bxc5 {[%clk 0:02:22.8]} 15. Bxe4 {[%clk 0:01:58.8]}
15... Qb6 {[%clk 0:02:20.1]} 16. O-O {[%clk 0:01:56.3]} 16... Bb7 {[%clk
0:02:12.5]} 17. Qc2 {[%clk 0:01:55.7]} 17... h6 {[%clk 0:02:11]} 18. e3 {[%clk
0:01:42]} 18... Rfd8 {[%clk 0:02:05.8]} 19. Bb2 {[%clk 0:01:41.8]} 19... Rac8
{[%clk 0:01:59.6]} 20. Rac1 {[%clk 0:01:38.2]} 20... Be7 {[%clk 0:01:56.5]} 21.
Qe2 {[%clk 0:01:20]} 21... c5 {[%clk 0:01:37.4]} 22. Bxb7 {[%clk 0:01:07]} 22...
Qxb7 {[%clk 0:01:36.7]} 23. a4 {[%clk 0:01:07]} 23... c4 {[%clk 0:00:31.9]} 24.
bxc4 {[%clk 0:00:58.8]} 24... bxc4 {[%clk 0:00:25.6]} 25. Bd4 {[%clk 0:00:51]}
25... Qc6 {[%clk 0:00:21.4]} 26. Qc2 {[%clk 0:00:45.7]} 26... Rd7 {[%clk
0:00:20.9]} 27. Rb1 {[%clk 0:00:33.3]} 27... Rb7 {[%clk 0:00:20]} 28. Bc3 {[%clk
0:00:30.6]} 28... Bb4 {[%clk 0:00:19.4]} 29. Rfd1 {[%clk 0:00:30.5]} 29... Bxc3
{[%clk 0:00:17.6]} 30. Qxc3 {[%clk 0:00:28.2]} 30... Rxb1 {[%clk 0:00:16.7]} 31.
Rxb1 {[%clk 0:00:29]} 31... Qxa4 {[%clk 0:00:17.4]} 32. e4 {[%clk 0:00:15.3]}
32... Qc6 {[%clk 0:00:16.5]} 33. Qxa5 {[%clk 0:00:07.5]} 33... Qxe4 {[%clk
0:00:16.7]} 34. Re1 {[%clk 0:00:08.1]} 34... Qd4 {[%clk 0:00:13.6]} 35. Qa4
{[%clk 0:00:03.4]} 35... Qc5 {[%clk 0:00:11.5]} 36. Qc2 {[%clk 0:00:02.9]} 36...
c3 {[%clk 0:00:11.4]} 37. Re3 {[%clk 0:00:03.6]} 37... Qd4 {[%clk 0:00:08.1]}
38. Re2 {[%clk 0:00:02.1]} 38... Rb8 {[%clk 0:00:07.8]} 39. Re1 {[%clk
0:00:01.3]} 39... Rb2 {[%clk 0:00:07.2]} 0-1

[Event "Early-Titled-Tuesday-Blitz-October-03-2023"]
[Site "Chess.com"]
[Date "2023.10.03"]
[Round "5"]
[White "hypert"]
[Black "GaiozNigalidze"]
[Result "0-1"]
[WhiteElo "2559"]
[BlackElo "2758"]
[TimeControl "180+1"]
[EndTime "8:56:11 PDT"]
[Termination "GaiozNigalidze won by resignation"]

1. d4 {[%clk 0:03:00]} 1... Nf6 {[%clk 0:02:58.4]} 2. c4 {[%clk 0:03:00]} 2...
e6 {[%clk 0:02:57.7]} 3. Nc3 {[%clk 0:02:59.2]} 3... d5 {[%clk 0:02:56.5]} 4.
Nf3 {[%clk 0:02:59.1]} 4... Be7 {[%clk 0:02:54.2]} 5. Bg5 {[%clk 0:02:58.7]}
5... O-O {[%clk 0:02:51.9]} 6. e3 {[%clk 0:02:58.4]} 6... h6 {[%clk 0:02:50]} 7.
Bh4 {[%clk 0:02:58]} 7... Ne4 {[%clk 0:02:49.1]} 8. Bxe7 {[%clk 0:02:52.9]} 8...
Qxe7 {[%clk 0:02:48.7]} 9. h4 {[%clk 0:02:52.4]} 9... Nxc3 {[%clk 0:02:42.1]}
10. bxc3 {[%clk 0:02:52]} 10... Nd7 {[%clk 0:02:41.8]} 11. cxd5 {[%clk
0:02:41.2]} 11... exd5 {[%clk 0:02:41.4]} 12. Qb3 {[%clk 0:02:36.1]} 12... c6
{[%clk 0:02:18.6]} 13. c4 {[%clk 0:02:30.5]} 13... dxc4 {[%clk 0:02:14.4]} 14.
Bxc4 {[%clk 0:02:31.4]} 14... Nb6 {[%clk 0:01:59.3]} 15. Be2 {[%clk 0:02:29.1]}
15... Bg4 {[%clk 0:01:46.5]} 16. Ne5 {[%clk 0:02:16.6]} 16... Bxe2 {[%clk
0:01:37.5]} 17. Kxe2 {[%clk 0:02:17.5]} 17... Nd5 {[%clk 0:01:37.8]} 18. g3
{[%clk 0:02:13.3]} 18... Rfe8 {[%clk 0:01:29.6]} 19. Rhe1 {[%clk 0:02:05.9]}
19... Rad8 {[%clk 0:01:10.9]} 20. Kf1 {[%clk 0:02:02.4]} 20... Rd6 {[%clk
0:01:11.1]} 21. Rad1 {[%clk 0:01:47.7]} 21... Rf6 {[%clk 0:01:04.1]} 22. e4
{[%clk 0:01:47.4]} 22... Nb6 {[%clk 0:00:58.3]} 23. Kg2 {[%clk 0:01:39.4]} 23...
c5 {[%clk 0:00:40.8]} 24. Nf3 {[%clk 0:01:35.4]} 24... cxd4 {[%clk 0:00:39]} 25.
e5 {[%clk 0:01:29.1]} 25... Re6 {[%clk 0:00:32.6]} 26. Rxd4 {[%clk 0:01:22.5]}
26... Qc5 {[%clk 0:00:32.5]} 27. Rde4 {[%clk 0:01:18]} 27... R8e7 {[%clk
0:00:28.2]} 28. h5 {[%clk 0:01:17.4]} 28... Qd5 {[%clk 0:00:24.1]} 29. Qc2
{[%clk 0:01:12]} 29... Re8 {[%clk 0:00:22.8]} 30. Qe2 {[%clk 0:01:08.3]} 30...
Nd7 {[%clk 0:00:18.6]} 31. Rd1 {[%clk 0:01:02.7]} 31... Qc6 {[%clk 0:00:16.1]}
32. Rc4 {[%clk 0:01:02.4]} 32... Nc5 {[%clk 0:00:15.9]} 33. Kg1 {[%clk
0:00:50.5]} 33... Qa6 {[%clk 0:00:16]} 34. Qc2 {[%clk 0:00:49.2]} 34... b6
{[%clk 0:00:16.2]} 35. Rd6 {[%clk 0:00:47.7]} 35... Qb7 {[%clk 0:00:16.3]} 36.
Rxe6 {[%clk 0:00:46.4]} 36... Rxe6 {[%clk 0:00:17.2]} 37. Qe2 {[%clk 0:00:44.9]}
37... Qd5 {[%clk 0:00:17.2]} 38. Rd4 {[%clk 0:00:44.4]} 38... Qa8 {[%clk
0:00:16.8]} 39. Qd1 {[%clk 0:00:43.8]} 39... Re8 {[%clk 0:00:17]} 40. Rd6 {[%clk
0:00:41.3]} 40... Qe4 {[%clk 0:00:16.5]} 41. Rd8 {[%clk 0:00:39]} 41... Rxd8
{[%clk 0:00:16.4]} 42. Qxd8+ {[%clk 0:00:39.9]} 42... Kh7 {[%clk 0:00:17.3]} 43.
Qd1 {[%clk 0:00:39.7]} 43... Ne6 {[%clk 0:00:17]} 44. Kg2 {[%clk 0:00:38.7]}
44... Ng5 {[%clk 0:00:16.2]} 45. a3 {[%clk 0:00:35.3]} 45... b5 {[%clk
0:00:16.5]} 46. Qb3 {[%clk 0:00:34.3]} 46... a5 {[%clk 0:00:14]} 47. e6 {[%clk
0:00:31.1]} 47... fxe6 {[%clk 0:00:13.2]} 48. g4 {[%clk 0:00:28.5]} 48... a4
{[%clk 0:00:12]} 49. Kf1 {[%clk 0:00:29.4]} 49... axb3 {[%clk 0:00:11.6]} 0-1

[Event "Early-Titled-Tuesday-Blitz-October-03-2023"]
[Site "Chess.com"]
[Date "2023.10.03"]
[Round "5"]
[White "ValentunHulka"]
[Black "Vesper2018"]
[Result "1-0"]
[WhiteElo "2783"]
[BlackElo "2586"]
[TimeControl "180+1"]
[EndTime "8:56:14 PDT"]
[Termination "ValentunHulka won on time"]

1. d4 {[%clk 0:02:57.2]} 1... Nf6 {[%clk 0:02:56.6]} 2. c4 {[%clk 0:02:57.2]}
2... g6 {[%clk 0:02:56.2]} 3. Nc3 {[%clk 0:02:56.9]} 3... Bg7 {[%clk 0:02:56.4]}
4. e4 {[%clk 0:02:56.8]} 4... d6 {[%clk 0:02:56.4]} 5. h3 {[%clk 0:02:56.7]}
5... O-O {[%clk 0:02:56.2]} 6. Be3 {[%clk 0:02:55.2]} 6... e5 {[%clk 0:02:55.5]}
7. d5 {[%clk 0:02:55.2]} 7... Na6 {[%clk 0:02:43.1]} 8. g4 {[%clk 0:02:54.5]}
8... c6 {[%clk 0:02:43.2]} 9. Nge2 {[%clk 0:02:52.6]} 9... Nc5 {[%clk
0:02:41.4]} 10. f3 {[%clk 0:02:52.4]} 10... cxd5 {[%clk 0:02:40.5]} 11. cxd5
{[%clk 0:02:51.7]} 11... a5 {[%clk 0:02:40.8]} 12. Ng3 {[%clk 0:02:47.9]} 12...
Bd7 {[%clk 0:02:36]} 13. h4 {[%clk 0:02:44.1]} 13... a4 {[%clk 0:02:27.8]} 14.
Qd2 {[%clk 0:02:38.9]} 14... Qa5 {[%clk 0:02:24.8]} 15. h5 {[%clk 0:02:30.8]}
15... b5 {[%clk 0:02:08]} 16. h6 {[%clk 0:02:27.1]} 16... Bh8 {[%clk 0:02:07.1]}
17. Nf5 {[%clk 0:02:24]} 17... Rfb8 {[%clk 0:01:48.6]} 18. Ne7+ {[%clk
0:02:02.9]} 18... Kf8 {[%clk 0:01:47.3]} 19. Nc6 {[%clk 0:02:03.5]} 19... Bxc6
{[%clk 0:01:36.5]} 20. dxc6 {[%clk 0:02:04.4]} 20... Ne8 {[%clk 0:01:36.8]} 21.
Nd5 {[%clk 0:01:45.6]} 21... Rc8 {[%clk 0:01:27.6]} 22. Qxa5 {[%clk 0:01:35.9]}
22... Rxa5 {[%clk 0:01:27.1]} 23. Bd2 {[%clk 0:01:22.1]} 23... Ra7 {[%clk
0:01:23.6]} 24. Bxb5 {[%clk 0:01:19.7]} 24... Rb8 {[%clk 0:01:16.5]} 25. Bc4
{[%clk 0:01:13.5]} 25... Rxb2 {[%clk 0:01:14.9]} 26. Ke2 {[%clk 0:01:09.6]}
26... a3 {[%clk 0:01:10.2]} 27. Ke3 {[%clk 0:01:02.8]} 27... Nc7 {[%clk
0:01:02.9]} 28. Bc3 {[%clk 0:00:53.1]} 28... Rg2 {[%clk 0:00:55.3]} 29. Rab1
{[%clk 0:00:48.3]} 29... Nxd5+ {[%clk 0:00:55]} 30. Bxd5 {[%clk 0:00:48]} 30...
Bf6 {[%clk 0:00:55.1]} 31. Rb8+ {[%clk 0:00:42.6]} 31... Ke7 {[%clk 0:00:55.2]}
32. f4 {[%clk 0:00:24.9]} 32... exf4+ {[%clk 0:00:52.8]} 33. Kxf4 {[%clk
0:00:13.5]} 33... Bxc3 {[%clk 0:00:50.6]} 34. Rf1 {[%clk 0:00:12.2]} 34... Kf6
{[%clk 0:00:11.1]} 35. g5+ {[%clk 0:00:08.4]} 35... Rxg5 {[%clk 0:00:08.4]} 36.
Ke3+ {[%clk 0:00:07.9]} 36... Ke5 {[%clk 0:00:07.9]} 37. Bxf7 {[%clk 0:00:02.1]}
37... Bd4+ {[%clk 0:00:06.7]} 38. Ke2 {[%clk 0:00:02.3]} 38... Rg2+ {[%clk
0:00:06.4]} 39. Kd1 {[%clk 0:00:02]} 39... Rb2 {[%clk 0:00:04.3]} 40. Re8+
{[%clk 0:00:02.4]} 1-0

[Event "Early-Titled-Tuesday-Blitz-October-03-2023"]
[Site "Chess.com"]
[Date "2023.10.03"]
[Round "5"]
[White "amylazy"]
[Black "pankajfm"]
[Result "1-0"]
[WhiteElo "2378"]
[BlackElo "2105"]
[TimeControl "180+1"]
[EndTime "8:56:17 PDT"]
[Termination "amylazy won by checkmate"]

1. d4 {[%clk 0:02:55.6]} 1... Nf6 {[%clk 0:02:59.7]} 2. Nf3 {[%clk 0:02:55.9]}
2... g6 {[%clk 0:02:59.7]} 3. g3 {[%clk 0:02:53.7]} 3... Bg7 {[%clk 0:03:00.1]}
4. Bg2 {[%clk 0:02:54.6]} 4... O-O {[%clk 0:03:00.6]} 5. O-O {[%clk 0:02:55.4]}
5... d6 {[%clk 0:03:01.5]} 6. a4 {[%clk 0:02:55.5]} 6... a6 {[%clk 0:02:58.6]}
7. a5 {[%clk 0:02:55]} 7... c5 {[%clk 0:02:42.8]} 8. dxc5 {[%clk 0:02:53.6]}
8... dxc5 {[%clk 0:02:43.7]} 9. Be3 {[%clk 0:02:54]} 9... Nbd7 {[%clk
0:02:35.8]} 10. Nc3 {[%clk 0:02:52.4]} 10... Qc7 {[%clk 0:02:32.9]} 11. Na4
{[%clk 0:02:51]} 11... Ng4 {[%clk 0:02:13.9]} 12. Bf4 {[%clk 0:02:49.3]} 12...
e5 {[%clk 0:02:12.4]} 13. Bd2 {[%clk 0:02:48.6]} 13... Rb8 {[%clk 0:02:00.9]}
14. h3 {[%clk 0:02:46.8]} 14... Nh6 {[%clk 0:01:57.9]} 15. c4 {[%clk 0:02:35.1]}
15... Nf5 {[%clk 0:01:54.8]} 16. e3 {[%clk 0:02:30.5]} 16... b5 {[%clk
0:01:30.4]} 17. cxb5 {[%clk 0:02:22.1]} 17... axb5 {[%clk 0:01:29.9]} 18. Nc3
{[%clk 0:02:21.6]} 18... Nf6 {[%clk 0:01:09.9]} 19. g4 {[%clk 0:01:45.4]} 19...
b4 {[%clk 0:00:44.3]} 20. Ne2 {[%clk 0:01:22]} 20... Ne7 {[%clk 0:00:34.9]} 21.
Qc2 {[%clk 0:01:16.6]} 21... h5 {[%clk 0:00:30.7]} 22. g5 {[%clk 0:00:50.6]}
22... Bf5 {[%clk 0:00:30.5]} 23. Qc1 {[%clk 0:00:48.6]} 23... Ne4 {[%clk
0:00:29.1]} 24. Nh4 {[%clk 0:00:47.3]} 24... Nxg5 {[%clk 0:00:24]} 25. Nxf5
{[%clk 0:00:42.4]} 25... gxf5 {[%clk 0:00:22]} 26. Ng3 {[%clk 0:00:41.8]} 26...
h4 {[%clk 0:00:21.1]} 27. Nh5 {[%clk 0:00:41.5]} 27... Bh8 {[%clk 0:00:20.5]}
28. Qc4 {[%clk 0:00:35.7]} 28... Qd6 {[%clk 0:00:13.4]} 29. Qxh4 {[%clk
0:00:35.4]} 29... f6 {[%clk 0:00:09.5]} 30. Rad1 {[%clk 0:00:33.4]} 30... Qe6
{[%clk 0:00:09]} 31. f4 {[%clk 0:00:30.6]} 31... Ng6 {[%clk 0:00:07.9]} 32. Qg3
{[%clk 0:00:30.1]} 32... exf4 {[%clk 0:00:07.5]} 33. exf4 {[%clk 0:00:30]} 33...
Qd6 {[%clk 0:00:05.4]} 34. fxg5 {[%clk 0:00:28.7]} 34... Qxg3 {[%clk 0:00:06.3]}
35. Nxg3 {[%clk 0:00:29.2]} 35... fxg5 {[%clk 0:00:07]} 36. Nxf5 {[%clk
0:00:29.5]} 36... Bxb2 {[%clk 0:00:07.1]} 37. Bxg5 {[%clk 0:00:29.4]} 37... Bf6
{[%clk 0:00:06.5]} 38. Bd5+ {[%clk 0:00:29.4]} 38... Kh7 {[%clk 0:00:06.2]} 39.
Bxf6 {[%clk 0:00:27.8]} 39... Rxf6 {[%clk 0:00:07.1]} 40. Be4 {[%clk 0:00:27]}
40... Ra6 {[%clk 0:00:07.6]} 41. Ne7 {[%clk 0:00:26.8]} 41... Rxa5 {[%clk
0:00:06.6]} 42. Bxg6+ {[%clk 0:00:26.5]} 42... Kh6 {[%clk 0:00:07.3]} 43. Rd6
{[%clk 0:00:25.9]} 43... Kg5 {[%clk 0:00:07.1]} 44. Rf5+ {[%clk 0:00:21.6]}
44... Kh6 {[%clk 0:00:07.5]} 45. Be8+ {[%clk 0:00:20.1]} 45... Kg7 {[%clk
0:00:08]} 46. Rf7+ {[%clk 0:00:20]} 46... Kh8 {[%clk 0:00:07]} 47. Rh6# {[%clk
0:00:20.9]} 1-0